[Event "Early-Titled-Tuesday-Blitz-February-13-2024"]
[Site "Chess.com"]
[Date "2024.02.13"]
[Round "3"]
[White "Roman_Ovetchkin"]
[Black "Shahdad2007"]
[Result "0-1"]
[WhiteElo "2628"]
[BlackElo "2476"]
[TimeControl "180+1"]
[EndTime "8:31:19 PST"]
[Termination "Shahdad2007 won by resignation"]

1. d4 {[%clk 0:03:00.9]} 1... c6 {[%clk 0:03:00.9]} 2. c4 {[%clk 0:02:59.2]}
2... d5 {[%clk 0:03:01]} 3. Nf3 {[%clk 0:02:58.9]} 3... Nf6 {[%clk 0:03:00.6]}
4. Qc2 {[%clk 0:02:58.7]} 4... g6 {[%clk 0:02:55.3]} 5. Bf4 {[%clk 0:02:57.8]}
5... Bg7 {[%clk 0:02:54.9]} 6. e3 {[%clk 0:02:57.9]} 6... O-O {[%clk 0:02:54.4]}
7. Nc3 {[%clk 0:02:57.7]} 7... Bf5 {[%clk 0:02:54.3]} 8. Qb3 {[%clk 0:02:57.4]}
8... dxc4 {[%clk 0:02:53]} 9. Bxc4 {[%clk 0:02:56.8]} 9... b5 {[%clk 0:02:53.1]}
10. Be2 {[%clk 0:02:46.6]} 10... Be6 {[%clk 0:02:52.1]} 11. Qc2 {[%clk
0:02:45.4]} 11... Nd5 {[%clk 0:02:52.1]} 12. Be5 {[%clk 0:02:44.3]} 12... f6
{[%clk 0:02:50.7]} 13. Bg3 {[%clk 0:02:40.7]} 13... Nxc3 {[%clk 0:02:45.4]} 14.
Qxc3 {[%clk 0:02:38.8]} 14... Bf7 {[%clk 0:02:38.7]} 15. O-O {[%clk 0:02:28.6]}
15... Qd5 {[%clk 0:02:28.9]} 16. a4 {[%clk 0:02:24.8]} 16... Nd7 {[%clk
0:02:27.2]} 17. Nd2 {[%clk 0:02:01.2]} 17... Rac8 {[%clk 0:02:16.5]} 18. Bf3
{[%clk 0:01:55.8]} 18... Qe6 {[%clk 0:02:16.3]} 19. Rfc1 {[%clk 0:01:40.4]}
19... c5 {[%clk 0:02:14.1]} 20. d5 {[%clk 0:01:38.1]} 20... Qb6 {[%clk
0:02:14.2]} 21. axb5 {[%clk 0:01:38]} 21... Qxb5 {[%clk 0:02:15.1]} 22. Nc4
{[%clk 0:01:34.3]} 22... Nb6 {[%clk 0:02:05]} 23. Ra5 {[%clk 0:01:23.6]} 23...
Qd7 {[%clk 0:01:56.9]} 24. e4 {[%clk 0:01:23]} 24... f5 {[%clk 0:01:53.4]} 25.
Ne5 {[%clk 0:01:19.9]} 25... Bxe5 {[%clk 0:01:44.9]} 26. Bxe5 {[%clk 0:01:09.9]}
26... fxe4 {[%clk 0:01:44.9]} 27. Bh8 {[%clk 0:01:04.7]} 27... e5 {[%clk
0:01:45.1]} 28. Qxe5 {[%clk 0:00:56.9]} 28... Bxd5 {[%clk 0:01:45.2]} 29. Bg4
{[%clk 0:00:57.2]} 29... Qf7 {[%clk 0:01:45.2]} 30. Kh1 {[%clk 0:00:53.1]} 30...
Rce8 {[%clk 0:01:39.5]} 31. Qc3 {[%clk 0:00:52.5]} 31... e3 {[%clk 0:01:34.4]}
32. f3 {[%clk 0:00:45.6]} 32... h5 {[%clk 0:01:30.3]} 33. Bh3 {[%clk 0:00:44]}
33... e2 {[%clk 0:01:30.5]} 34. Re1 {[%clk 0:00:42.7]} 34... Kh7 {[%clk
0:01:14.3]} 35. Rxc5 {[%clk 0:00:15.3]} 35... Rxh8 {[%clk 0:01:11.3]} 36. Rc7
{[%clk 0:00:13.5]} 36... Re7 {[%clk 0:01:11.5]} 37. Rxe7 {[%clk 0:00:13.3]}
37... Qxe7 {[%clk 0:01:12.4]} 38. b3 {[%clk 0:00:10.9]} 38... Re8 {[%clk
0:01:11.5]} 39. Qd3 {[%clk 0:00:08.8]} 39... Qe3 {[%clk 0:01:10]} 0-1

[Event "Early-Titled-Tuesday-Blitz-February-13-2024"]
[Site "Chess.com"]
[Date "2024.02.13"]
[Round "3"]
[White "krzyzan94"]
[Black "Ykow"]
[Result "1-0"]
[WhiteElo "2786"]
[BlackElo "2506"]
[TimeControl "180+1"]
[EndTime "8:31:22 PST"]
[Termination "krzyzan94 won on time"]

1. e4 {[%clk 0:03:00.9]} 1... c5 {[%clk 0:02:59.3]} 2. Nf3 {[%clk 0:02:59.7]}
2... Nf6 {[%clk 0:02:59.9]} 3. e5 {[%clk 0:02:59.9]} 3... Nd5 {[%clk 0:03:00.1]}
4. c3 {[%clk 0:03:00.5]} 4... d6 {[%clk 0:02:59.5]} 5. d4 {[%clk 0:03:00.9]}
5... cxd4 {[%clk 0:02:59.3]} 6. cxd4 {[%clk 0:03:01]} 6... e6 {[%clk 0:02:59.5]}
7. Bd3 {[%clk 0:03:00.9]} 7... Nc6 {[%clk 0:02:59.6]} 8. O-O {[%clk 0:03:01.5]}
8... Be7 {[%clk 0:02:58.9]} 9. Re1 {[%clk 0:03:02.1]} 9... O-O {[%clk
0:02:58.5]} 10. a3 {[%clk 0:03:02]} 10... dxe5 {[%clk 0:02:47.2]} 11. dxe5
{[%clk 0:03:02.9]} 11... b6 {[%clk 0:02:47]} 12. Qe2 {[%clk 0:03:03.1]} 12...
Bb7 {[%clk 0:02:46.6]} 13. h4 {[%clk 0:03:02.2]} 13... Na5 {[%clk 0:02:19.9]}
14. Ng5 {[%clk 0:02:53.5]} 14... Bxg5 {[%clk 0:02:16.2]} 15. Bxg5 {[%clk
0:02:51.2]} 15... Qd7 {[%clk 0:02:09.2]} 16. Nd2 {[%clk 0:02:50.9]} 16... Rfc8
{[%clk 0:01:52.9]} 17. Rad1 {[%clk 0:02:51]} 17... h6 {[%clk 0:01:48.1]} 18.
Bxh6 {[%clk 0:02:50.7]} 18... gxh6 {[%clk 0:01:47.5]} 19. Qh5 {[%clk 0:02:49.9]}
19... Qe7 {[%clk 0:01:07.6]} 20. Ne4 {[%clk 0:02:47.4]} 20... Kg7 {[%clk
0:00:51.9]} 21. Qg4+ {[%clk 0:02:45.3]} 21... Kh8 {[%clk 0:00:51.6]} 22. Qh5
{[%clk 0:02:44.7]} 22... Kg7 {[%clk 0:00:51.2]} 23. b4 {[%clk 0:02:44.4]} 23...
Nc6 {[%clk 0:00:49.5]} 24. Nd6 {[%clk 0:02:44.4]} 24... Rc7 {[%clk 0:00:46.7]}
25. Re4 {[%clk 0:02:44.2]} 25... Rh8 {[%clk 0:00:42.8]} 26. Rg4+ {[%clk
0:02:44.1]} 26... Kf8 {[%clk 0:00:42.8]} 27. Be4 {[%clk 0:02:42.7]} 27... Nd8
{[%clk 0:00:31.9]} 28. Nxb7 {[%clk 0:02:41.5]} 28... Rxb7 {[%clk 0:00:31.1]} 29.
Bxd5 {[%clk 0:02:41.1]} 29... exd5 {[%clk 0:00:31.8]} 30. Rxd5 {[%clk
0:02:41.8]} 30... Rd7 {[%clk 0:00:32.4]} 31. Rgd4 {[%clk 0:02:36.9]} 31... Rxd5
{[%clk 0:00:32.5]} 32. Rxd5 {[%clk 0:02:37.8]} 32... Ne6 {[%clk 0:00:32.8]} 33.
Kh2 {[%clk 0:02:35.5]} 33... Qc7 {[%clk 0:00:31.2]} 34. Qf5 {[%clk 0:02:33.3]}
34... Qc4 {[%clk 0:00:28.1]} 35. Rd7 {[%clk 0:02:28.8]} 35... Qf4+ {[%clk
0:00:26.8]} 36. Qxf4 {[%clk 0:02:28.6]} 36... Nxf4 {[%clk 0:00:27.7]} 37. Rxa7
{[%clk 0:02:28.2]} 37... Kg7 {[%clk 0:00:28.1]} 38. g3 {[%clk 0:02:28.1]} 38...
Nd3 {[%clk 0:00:25.8]} 39. e6 {[%clk 0:02:27.6]} 39... Kf6 {[%clk 0:00:24.6]}
40. exf7 {[%clk 0:02:26.5]} 40... Nxf2 {[%clk 0:00:24.7]} 41. Rb7 {[%clk
0:02:24.2]} 41... Ng4+ {[%clk 0:00:24.5]} 42. Kg2 {[%clk 0:02:24.6]} 42... h5
{[%clk 0:00:25.4]} 43. a4 {[%clk 0:02:24]} 43... Ra8 {[%clk 0:00:24]} 44. Rxb6+
{[%clk 0:02:18.4]} 44... Kxf7 {[%clk 0:00:23.5]} 45. a5 {[%clk 0:02:19.3]} 45...
Ke7 {[%clk 0:00:18.9]} 46. a6 {[%clk 0:02:18.7]} 46... Kd7 {[%clk 0:00:18.8]}
47. b5 {[%clk 0:02:19.1]} 47... Kc7 {[%clk 0:00:17.4]} 48. Rc6+ {[%clk
0:02:19.3]} 48... Kb8 {[%clk 0:00:15.5]} 49. Rg6 {[%clk 0:02:15.5]} 49... Ka7
{[%clk 0:00:15.7]} 50. Rg7+ {[%clk 0:02:10.3]} 50... Kb6 {[%clk 0:00:15.7]} 51.
Rb7+ {[%clk 0:02:10.7]} 51... Ka5 {[%clk 0:00:15.2]} 52. Kf3 {[%clk 0:02:11.6]}
52... Ne5+ {[%clk 0:00:14]} 53. Kf4 {[%clk 0:02:11.3]} 53... Nc4 {[%clk
0:00:14.9]} 54. Kg5 {[%clk 0:02:10.9]} 54... Nb6 {[%clk 0:00:13]} 55. Kxh5
{[%clk 0:02:10.9]} 55... Kxb5 {[%clk 0:00:13.5]} 56. a7 {[%clk 0:02:11.8]} 56...
Kc6 {[%clk 0:00:13.3]} 57. Rg7 {[%clk 0:02:11.7]} 57... Nd7 {[%clk 0:00:13.6]}
58. g4 {[%clk 0:02:10.6]} 58... Rxa7 {[%clk 0:00:13.6]} 59. g5 {[%clk
0:02:11.3]} 59... Kd6 {[%clk 0:00:13.3]} 60. Kg6 {[%clk 0:02:10.2]} 60... Ne5+
{[%clk 0:00:13]} 61. Kf6 {[%clk 0:02:08.5]} 61... Ng4+ {[%clk 0:00:12.4]} 62.
Kg6 {[%clk 0:02:09]} 62... Ne5+ {[%clk 0:00:12.7]} 63. Kh7 {[%clk 0:02:09.7]}
63... Ra4 {[%clk 0:00:12.3]} 64. h5 {[%clk 0:02:09.8]} 64... Rh4 {[%clk
0:00:13.2]} 65. h6 {[%clk 0:02:09.2]} 65... Ke6 {[%clk 0:00:14.1]} 66. Ra7
{[%clk 0:02:04.7]} 66... Kf5 {[%clk 0:00:14.3]} 67. Ra5 {[%clk 0:02:05.3]} 67...
Rh5 {[%clk 0:00:13.9]} 68. g6 {[%clk 0:02:04.8]} 1-0

[Event "Early-Titled-Tuesday-Blitz-February-13-2024"]
[Site "Chess.com"]
[Date "2024.02.13"]
[Round "3"]
[White "LeoLV10"]
[Black "Qingdom"]
[Result "1-0"]
[WhiteElo "2553"]
[BlackElo "2158"]
[TimeControl "180+1"]
[EndTime "8:31:24 PST"]
[Termination "LeoLV10 won by resignation"]

1. e4 {[%clk 0:03:00.9]} 1... c5 {[%clk 0:02:59.2]} 2. Nf3 {[%clk 0:03:00.2]}
2... Nc6 {[%clk 0:02:59.1]} 3. Bb5 {[%clk 0:02:59.9]} 3... Nf6 {[%clk
0:02:58.5]} 4. e5 {[%clk 0:02:52.9]} 4... Nd5 {[%clk 0:02:58.1]} 5. O-O {[%clk
0:02:52.4]} 5... g6 {[%clk 0:02:56.6]} 6. c3 {[%clk 0:02:50.7]} 6... Bg7 {[%clk
0:02:55.6]} 7. d4 {[%clk 0:02:50.5]} 7... cxd4 {[%clk 0:02:54]} 8. cxd4 {[%clk
0:02:32]} 8... O-O {[%clk 0:02:52.7]} 9. Bc4 {[%clk 0:02:30.3]} 9... Nb6 {[%clk
0:02:50.8]} 10. Bb3 {[%clk 0:02:30.8]} 10... d6 {[%clk 0:02:50.2]} 11. exd6
{[%clk 0:02:31]} 11... Qxd6 {[%clk 0:02:48.6]} 12. Be3 {[%clk 0:02:29]} 12...
Bg4 {[%clk 0:02:47.9]} 13. d5 {[%clk 0:02:25.3]} 13... Ne5 {[%clk 0:02:46.4]}
14. Nc3 {[%clk 0:02:23.8]} 14... Nxf3+ {[%clk 0:02:43.8]} 15. gxf3 {[%clk
0:02:24.7]} 15... Bh3 {[%clk 0:02:42.8]} 16. Re1 {[%clk 0:02:20]} 16... Rfd8
{[%clk 0:02:38.2]} 17. Qe2 {[%clk 0:02:02.3]} 17... Be5 {[%clk 0:02:20.3]} 18.
Nb5 {[%clk 0:01:26.9]} 18... Bxh2+ {[%clk 0:02:10.6]} 19. Kh1 {[%clk 0:01:26.6]}
19... Qb8 {[%clk 0:02:09.3]} 20. Bxb6 {[%clk 0:01:19.6]} 20... axb6 {[%clk
0:02:08.9]} 21. Qxe7 {[%clk 0:01:19.1]} 21... Bd6 {[%clk 0:02:02.4]} 22. Nxd6
{[%clk 0:01:16.1]} 22... Qxd6 {[%clk 0:01:54.6]} 23. Rac1 {[%clk 0:01:09.2]}
23... Qf4 {[%clk 0:01:49.7]} 24. Qe4 {[%clk 0:00:57.9]} 24... Qh6 {[%clk
0:01:40.9]} 25. Qe3 {[%clk 0:00:45.7]} 25... Qh5 {[%clk 0:01:31.7]} 26. Kg1
{[%clk 0:00:42.3]} 26... Re8 {[%clk 0:01:19.5]} 27. Qf4 {[%clk 0:00:42.4]} 27...
Rac8 {[%clk 0:00:47.1]} 28. Rxc8 {[%clk 0:00:41.2]} 28... Rxc8 {[%clk
0:00:46.3]} 29. d6 {[%clk 0:00:41.2]} 29... Be6 {[%clk 0:00:36.4]} 30. Rxe6
{[%clk 0:00:36.3]} 30... fxe6 {[%clk 0:00:34.9]} 31. Bxe6+ {[%clk 0:00:36.3]}
31... Kg7 {[%clk 0:00:35.5]} 32. Bxc8 {[%clk 0:00:37.2]} 32... Qc5 {[%clk
0:00:31.5]} 33. d7 {[%clk 0:00:34.5]} 33... Qd5 {[%clk 0:00:30.6]} 34. Qe3
{[%clk 0:00:31.2]} 34... Qd1+ {[%clk 0:00:28.7]} 35. Kg2 {[%clk 0:00:31.5]}
35... Qd6 {[%clk 0:00:26.6]} 36. f4 {[%clk 0:00:31]} 36... b5 {[%clk 0:00:23.9]}
37. Qe5+ {[%clk 0:00:31.3]} 1-0

[Event "Early-Titled-Tuesday-Blitz-February-13-2024"]
[Site "Chess.com"]
[Date "2024.02.13"]
[Round "3"]
[White "JG-17"]
[Black "Thunderbolt135"]
[Result "0-1"]
[WhiteElo "2471"]
[BlackElo "2655"]
[TimeControl "180+1"]
[EndTime "8:31:25 PST"]
[Termination "Thunderbolt135 won by checkmate"]

1. e4 {[%clk 0:03:00.9]} 1... c5 {[%clk 0:03:00.1]} 2. Nf3 {[%clk 0:03:00.9]}
2... e6 {[%clk 0:02:58.3]} 3. c4 {[%clk 0:02:59.4]} 3... a6 {[%clk 0:02:56.2]}
4. d4 {[%clk 0:02:59.4]} 4... cxd4 {[%clk 0:02:57.1]} 5. Nxd4 {[%clk 0:02:59.9]}
5... Qc7 {[%clk 0:02:57.7]} 6. Nc3 {[%clk 0:02:59.4]} 6... b6 {[%clk 0:02:58.4]}
7. a3 {[%clk 0:02:52.2]} 7... Bb7 {[%clk 0:02:58.4]} 8. Be2 {[%clk 0:02:45.1]}
8... Nf6 {[%clk 0:02:57.5]} 9. f3 {[%clk 0:02:44.7]} 9... d6 {[%clk 0:02:55.2]}
10. O-O {[%clk 0:02:43.7]} 10... Be7 {[%clk 0:02:55.5]} 11. Be3 {[%clk
0:02:43.7]} 11... O-O {[%clk 0:02:56.2]} 12. b4 {[%clk 0:02:43.8]} 12... Nbd7
{[%clk 0:02:56.6]} 13. Qd2 {[%clk 0:02:38.4]} 13... Rac8 {[%clk 0:02:55.7]} 14.
Rfc1 {[%clk 0:02:38.4]} 14... Qb8 {[%clk 0:02:52.2]} 15. Nb3 {[%clk 0:02:28.1]}
15... Bd8 {[%clk 0:02:32.4]} 16. a4 {[%clk 0:02:24.7]} 16... Bc7 {[%clk
0:02:10.4]} 17. a5 {[%clk 0:02:23.3]} 17... d5 {[%clk 0:01:56]} 18. cxd5 {[%clk
0:02:20.6]} 18... Bxh2+ {[%clk 0:01:47.1]} 19. Kh1 {[%clk 0:02:14.7]} 19... exd5
{[%clk 0:01:48]} 20. Nxd5 {[%clk 0:02:07.1]} 20... Bxd5 {[%clk 0:01:08.6]} 21.
exd5 {[%clk 0:02:03.1]} 21... Rxc1+ {[%clk 0:01:08.2]} 22. Rxc1 {[%clk
0:01:59.5]} 22... Nh5 {[%clk 0:01:09.1]} 23. g4 {[%clk 0:01:39.7]} 23... Ng3+
{[%clk 0:00:41]} 24. Kg2 {[%clk 0:01:32.3]} 24... Nxe2 {[%clk 0:00:39]} 25. Qxe2
{[%clk 0:01:32.5]} 25... Re8 {[%clk 0:00:39.9]} 26. Qf2 {[%clk 0:01:22.6]} 26...
Ne5 {[%clk 0:00:07.9]} 27. Kxh2 {[%clk 0:01:10.8]} 27... Nxg4+ {[%clk
0:00:07.7]} 28. Kg2 {[%clk 0:01:07.4]} 28... Nxf2 {[%clk 0:00:08.6]} 29. Bxf2
{[%clk 0:01:08]} 29... bxa5 {[%clk 0:00:07]} 30. Nxa5 {[%clk 0:01:07]} 30...
Qxb4 {[%clk 0:00:07]} 31. Nc6 {[%clk 0:01:07.2]} 31... Qd6 {[%clk 0:00:05.5]}
32. Bg3 {[%clk 0:01:04.9]} 32... Qd7 {[%clk 0:00:04.5]} 33. d6 {[%clk
0:01:02.4]} 33... h5 {[%clk 0:00:04.4]} 34. Ne7+ {[%clk 0:01:02.8]} 34... Rxe7
{[%clk 0:00:04.7]} 35. Rc7 {[%clk 0:01:03.7]} 35... Re2+ {[%clk 0:00:03.2]} 36.
Kg1 {[%clk 0:01:03.3]} 36... Qb5 {[%clk 0:00:03.6]} 37. d7 {[%clk 0:00:59.6]}
37... Qb1+ {[%clk 0:00:03.3]} 38. Be1 {[%clk 0:00:59.3]} 38... Qxe1# {[%clk
0:00:03.5]} 0-1

[Event "Early-Titled-Tuesday-Blitz-February-13-2024"]
[Site "Chess.com"]
[Date "2024.02.13"]
[Round "3"]
[White "Nemegejas"]
[Black "Keeper0416"]
[Result "0-1"]
[WhiteElo "2829"]
[BlackElo "2594"]
[TimeControl "180+1"]
[EndTime "8:31:27 PST"]
[Termination "Keeper0416 won by resignation"]

1. Nf3 {[%clk 0:03:00.9]} 1... Nf6 {[%clk 0:02:59.4]} 2. g3 {[%clk 0:03:01.3]}
2... g6 {[%clk 0:02:59.7]} 3. Bg2 {[%clk 0:03:01.7]} 3... Bg7 {[%clk 0:03:00]}
4. O-O {[%clk 0:03:02.4]} 4... O-O {[%clk 0:03:00.6]} 5. c4 {[%clk 0:03:02.5]}
5... d6 {[%clk 0:02:55.1]} 6. d4 {[%clk 0:03:02.7]} 6... a5 {[%clk 0:02:52]} 7.
Nc3 {[%clk 0:03:00.1]} 7... c6 {[%clk 0:02:51.2]} 8. e4 {[%clk 0:02:59.2]} 8...
Nfd7 {[%clk 0:02:47.2]} 9. Be3 {[%clk 0:02:53.2]} 9... Na6 {[%clk 0:02:40.2]}
10. Qd2 {[%clk 0:02:32]} 10... e5 {[%clk 0:02:37]} 11. Rad1 {[%clk 0:02:32.3]}
11... Qe7 {[%clk 0:02:24.9]} 12. Rfe1 {[%clk 0:01:56.3]} 12... Re8 {[%clk
0:02:18.8]} 13. dxe5 {[%clk 0:01:39.5]} 13... Nxe5 {[%clk 0:01:31.1]} 14. Nxe5
{[%clk 0:01:36.2]} 14... dxe5 {[%clk 0:01:32]} 15. Na4 {[%clk 0:01:34.9]} 15...
Be6 {[%clk 0:01:30.6]} 16. Nb6 {[%clk 0:01:28.7]} 16... Rad8 {[%clk 0:01:14.2]}
17. Qxa5 {[%clk 0:01:27.7]} 17... Qb4 {[%clk 0:01:13]} 18. Qxb4 {[%clk
0:01:25.5]} 18... Nxb4 {[%clk 0:01:13.2]} 19. Rxd8 {[%clk 0:00:10.1]} 19... Rxd8
{[%clk 0:01:14.1]} 20. Bc5 {[%clk 0:00:04.6]} 20... Nxa2 {[%clk 0:00:47.4]} 21.
Ra1 {[%clk 0:00:04.7]} 21... Bh6 {[%clk 0:00:48]} 22. h4 {[%clk 0:00:01.4]}
22... Nc1 {[%clk 0:00:45.9]} 23. Ra7 {[%clk 0:00:02.3]} 23... Nd3 {[%clk
0:00:43]} 24. Kh2 {[%clk 0:00:03]} 24... Nxc5 {[%clk 0:00:42.9]} 25. b4 {[%clk
0:00:03.6]} 25... Nd3 {[%clk 0:00:42]} 26. Rxb7 {[%clk 0:00:03.2]} 26... Nxf2
{[%clk 0:00:42.2]} 27. b5 {[%clk 0:00:02.9]} 27... cxb5 {[%clk 0:00:41.2]} 28.
cxb5 {[%clk 0:00:03.3]} 28... Ng4+ {[%clk 0:00:41.1]} 29. Kg1 {[%clk 0:00:03.6]}
29... Be3+ {[%clk 0:00:41.6]} 30. Kf1 {[%clk 0:00:03.7]} 30... Rd2 {[%clk
0:00:40]} 0-1

[Event "Early-Titled-Tuesday-Blitz-February-13-2024"]
[Site "Chess.com"]
[Date "2024.02.13"]
[Round "3"]
[White "TRadjabov"]
[Black "jacky72"]
[Result "1-0"]
[WhiteElo "3034"]
[BlackElo "2770"]
[TimeControl "180+1"]
[EndTime "8:31:30 PST"]
[Termination "TRadjabov won by resignation"]

1. Nf3 {[%clk 0:02:59.4]} 1... Nf6 {[%clk 0:02:59.7]} 2. b3 {[%clk 0:03:00.3]}
2... g6 {[%clk 0:03:00]} 3. Bb2 {[%clk 0:03:00.5]} 3... Bg7 {[%clk 0:03:00.9]}
4. g3 {[%clk 0:03:01.1]} 4... b6 {[%clk 0:03:00.1]} 5. Bg2 {[%clk 0:03:01.6]}
5... Bb7 {[%clk 0:03:00.9]} 6. O-O {[%clk 0:03:02.1]} 6... O-O {[%clk
0:03:01.4]} 7. c4 {[%clk 0:03:02.8]} 7... d6 {[%clk 0:02:58]} 8. Nc3 {[%clk
0:03:02]} 8... Ne4 {[%clk 0:02:50.6]} 9. Qc2 {[%clk 0:03:00]} 9... Nxc3 {[%clk
0:02:51]} 10. Bxc3 {[%clk 0:03:00.1]} 10... e5 {[%clk 0:02:51.7]} 11. Rfd1
{[%clk 0:02:56.5]} 11... Nc6 {[%clk 0:02:35.6]} 12. e3 {[%clk 0:02:53]} 12...
Qe7 {[%clk 0:02:34]} 13. d4 {[%clk 0:02:51.5]} 13... e4 {[%clk 0:02:32.5]} 14.
Nd2 {[%clk 0:02:49.3]} 14... f5 {[%clk 0:02:33.2]} 15. b4 {[%clk 0:02:46.1]}
15... h5 {[%clk 0:02:28.7]} 16. b5 {[%clk 0:02:44.6]} 16... Nd8 {[%clk
0:02:23.7]} 17. a4 {[%clk 0:02:25.8]} 17... h4 {[%clk 0:02:22.7]} 18. a5 {[%clk
0:02:25.2]} 18... hxg3 {[%clk 0:02:21.4]} 19. hxg3 {[%clk 0:02:24.3]} 19... Nf7
{[%clk 0:02:16.7]} 20. Ra2 {[%clk 0:02:07.8]} 20... Ng5 {[%clk 0:01:54.7]} 21.
d5 {[%clk 0:02:05.4]} 21... Rae8 {[%clk 0:01:46.7]} 22. Rda1 {[%clk 0:01:57.3]}
22... Bc8 {[%clk 0:01:44.3]} 23. Qb2 {[%clk 0:01:57.4]} 23... Bxc3 {[%clk
0:01:34.8]} 24. Qxc3 {[%clk 0:01:58.3]} 24... Nf7 {[%clk 0:01:32.7]} 25. Nb3
{[%clk 0:01:52.8]} 25... Ne5 {[%clk 0:01:29.7]} 26. Nd4 {[%clk 0:01:53.2]} 26...
g5 {[%clk 0:01:19]} 27. axb6 {[%clk 0:01:34]} 27... axb6 {[%clk 0:01:19.9]} 28.
Ra7 {[%clk 0:01:32.3]} 28... f4 {[%clk 0:01:15.4]} 29. exf4 {[%clk 0:01:16.9]}
29... gxf4 {[%clk 0:01:16.3]} 30. Bxe4 {[%clk 0:01:17.1]} 30... Rf7 {[%clk
0:00:58.8]} 31. Ne6 {[%clk 0:01:08.2]} 31... Bxe6 {[%clk 0:00:54.4]} 32. dxe6
{[%clk 0:01:09.1]} 32... Rg7 {[%clk 0:00:55.1]} 33. Ra8 {[%clk 0:01:09.4]} 33...
fxg3 {[%clk 0:00:52.7]} 34. Rxe8+ {[%clk 0:01:08.2]} 34... Qxe8 {[%clk
0:00:53.6]} 35. Ra8 {[%clk 0:01:06.9]} 35... gxf2+ {[%clk 0:00:54]} 36. Kxf2
{[%clk 0:01:06.3]} 36... Qxa8 {[%clk 0:00:41.3]} 37. Bxa8 {[%clk 0:01:05.8]}
37... Kf8 {[%clk 0:00:42.2]} 38. Bd5 {[%clk 0:01:00.5]} 38... Ke7 {[%clk
0:00:41.5]} 39. c5 {[%clk 0:00:56.7]} 39... bxc5 {[%clk 0:00:38.3]} 40. Qa5
{[%clk 0:00:56.1]} 40... Kf6 {[%clk 0:00:38.9]} 41. Qa8 {[%clk 0:00:53.8]} 41...
Ng6 {[%clk 0:00:35.8]} 42. Qd8+ {[%clk 0:00:51]} 42... Ke5 {[%clk 0:00:36.4]}
43. Qg5+ {[%clk 0:00:48.5]} 43... Kd4 {[%clk 0:00:37.1]} 44. Ba2 {[%clk
0:00:39.9]} 1-0

[Event "Early-Titled-Tuesday-Blitz-February-13-2024"]
[Site "Chess.com"]
[Date "2024.02.13"]
[Round "3"]
[White "leschebaza"]
[Black "mary-sanna"]
[Result "1-0"]
[WhiteElo "2398"]
[BlackElo "2160"]
[TimeControl "180+1"]
[EndTime "8:31:30 PST"]
[Termination "leschebaza won on time"]

1. Nf3 {[%clk 0:02:59.5]} 1... d5 {[%clk 0:02:55.7]} 2. c4 {[%clk 0:02:53.5]}
2... e6 {[%clk 0:02:44.8]} 3. d4 {[%clk 0:02:51.2]} 3... Nf6 {[%clk 0:02:43.3]}
4. Nc3 {[%clk 0:02:51]} 4... c5 {[%clk 0:02:41.6]} 5. cxd5 {[%clk 0:02:49.7]}
5... exd5 {[%clk 0:02:42.5]} 6. Bg5 {[%clk 0:02:50.2]} 6... Nc6 {[%clk
0:02:35.8]} 7. e3 {[%clk 0:02:50.1]} 7... c4 {[%clk 0:02:35.1]} 8. Bxf6 {[%clk
0:02:44.4]} 8... gxf6 {[%clk 0:02:33.6]} 9. g3 {[%clk 0:02:41]} 9... Bg4 {[%clk
0:02:27.8]} 10. Bg2 {[%clk 0:02:40.5]} 10... Bb4 {[%clk 0:02:26.9]} 11. O-O
{[%clk 0:02:39.8]} 11... a6 {[%clk 0:02:21.5]} 12. Qc2 {[%clk 0:02:33.8]} 12...
Qd7 {[%clk 0:02:17.4]} 13. Rfe1 {[%clk 0:02:29.2]} 13... O-O-O {[%clk
0:01:40.8]} 14. Nh4 {[%clk 0:02:07.5]} 14... Ne7 {[%clk 0:01:31.9]} 15. b3
{[%clk 0:02:01.6]} 15... Kb8 {[%clk 0:01:20.1]} 16. bxc4 {[%clk 0:01:57.1]}
16... dxc4 {[%clk 0:01:21]} 17. Rab1 {[%clk 0:01:55.8]} 17... Qd6 {[%clk
0:01:04.9]} 18. Ne4 {[%clk 0:01:48.6]} 18... Qb6 {[%clk 0:00:10.5]} 19. a3
{[%clk 0:01:42.3]} 19... a5 {[%clk 0:00:11.1]} 20. axb4 {[%clk 0:01:41.8]} 20...
axb4 {[%clk 0:00:12]} 21. Qxc4 {[%clk 0:01:37.5]} 21... Nd5 {[%clk 0:00:10.3]}
22. Nd2 {[%clk 0:01:30.2]} 22... Be6 {[%clk 0:00:09.9]} 23. Bxd5 {[%clk
0:01:29.2]} 23... Bxd5 {[%clk 0:00:09.8]} 24. Qxb4 {[%clk 0:01:29.7]} 24... Qc6
{[%clk 0:00:09]} 25. Rec1 {[%clk 0:01:28.2]} 25... Qd7 {[%clk 0:00:08.4]} 26. e4
{[%clk 0:01:26.4]} 26... Be6 {[%clk 0:00:08.1]} 27. d5 {[%clk 0:01:26.4]} 27...
Bh3 {[%clk 0:00:07.8]} 28. Nc4 {[%clk 0:01:17.8]} 28... Rhe8 {[%clk 0:00:06.9]}
29. Ne3 {[%clk 0:01:17.5]} 29... Re5 {[%clk 0:00:06.1]} 30. Nhf5 {[%clk
0:01:09.6]} 30... Rde8 {[%clk 0:00:04.3]} 31. Nd6 {[%clk 0:01:06.9]} 31... R8e7
{[%clk 0:00:02.4]} 32. Rc8+ {[%clk 0:00:57.7]} 32... Qxc8 {[%clk 0:00:02.5]} 33.
Nxc8 {[%clk 0:00:58.6]} 33... Kxc8 {[%clk 0:00:03.3]} 34. Rc1+ {[%clk
0:00:57.6]} 34... Kb8 {[%clk 0:00:03.1]} 35. f3 {[%clk 0:00:52.9]} 35... Re8
{[%clk 0:00:01.9]} 36. g4 {[%clk 0:00:51.7]} 1-0